{"text_format":"3","workbook":"xlsx","n_sheets":3,"sheets":["Sheet1","Sheet2","Sheet3"],"not_rendered":{"defined_names":1},"read":"whole","date_system":"1900"}

{"sheet":"Sheet1","index":0,"n_rows":171,"n_cols":41,"rows_kept":171}
["Path","Value","HowMany","AEP","ANO","bas","BGE","CAL","CAT","CPL","CWE","EBC","ELF","EN","ESF","EXC","EXE","FNP","FPL","GEN","GPC","HLP","IP2","IP3","MAI","MCG","NSP","OHL","RGE","ROB","SET","SHE","TP","TP0","TPB","TUE","VLN","WCN","WEP","WPB","WPS"]
["/PlantFormat/FormatData/ProcData/CheckOffData/@CheckOffAdjustment",11,{"$f":"COUNTA(D2:AO2)","v":2},{"$nulls":4},1,{"$nulls":29},1]
["/PlantFormat/FormatData/ProcData/CheckOffData/@CheckOffAdjustment",13,{"$f":"COUNTA(D3:AO3)","v":2},{"$nulls":3},1,{"$nulls":19},1]
["/PlantFormat/FormatData/ProcData/CheckOffData/@CheckOffAdjustment",8,1,{"$nulls":3},1]
["/PlantFormat/FormatData/ProcData/CheckOffData/@CheckOffOnHLSOnly",false,1,null,null,1]
["/PlantFormat/FormatData/ProcData/CheckOffData/@CheckOffOnHLSOnly",true,2,null,2,{"$nulls":12},1]
["/PlantFormat/FormatData/ProcData/CheckOffData/@DropCheckOff",false,1,null,null,1]
["/PlantFormat/FormatData/ProcData/CheckOffData/@DropCheckOff",true,5,null,1,null,2,1,{"$nulls":18},2,{"$nulls":10},1]
["/PlantFormat/FormatData/ProcData/CheckOffData/@UseCheckOffsIn",1,1,{"$nulls":17},2]
["/PlantFormat/FormatData/ProcData/CheckOffData/@UseCheckOffsIn",2097159,2,{"$nulls":4},1,{"$nulls":29},1]
["/PlantFormat/FormatData/ProcData/CheckOffData/@UseCheckOffsIn",3,2,{"$nulls":26},1,null,1]
["/PlantFormat/FormatData/ProcData/CheckOffData/@UseCheckOffsIn",3145735,2,null,1,{"$nulls":4},1]
["/PlantFormat/FormatData/ProcData/CheckOffData/@UseCheckOffsIn",4,2,{"$nulls":3},1,{"$nulls":19},1]
["/PlantFormat/FormatData/ProcData/CheckOffData/@UseCheckOffsIn",5,1,{"$nulls":17},1]
["/PlantFormat/FormatData/ProcData/CheckOffData/@UseCheckOffsIn",5242884,2,{"$nulls":3},1,{"$nulls":10},1]
["/PlantFormat/FormatData/ProcData/CheckOffData/@UseCheckOffsIn",6,1,{"$nulls":23},1]
["/PlantFormat/FormatData/ProcData/CheckOffData/@UseCheckOffsIn",7,3,null,2,{"$nulls":21},6,{"$nulls":8},1]
["/PlantFormat/FormatData/ProcData/CheckOffData/CheckOffHeaderList","{node}",5,null,1,null,null,1,null,1,{"$nulls":16},1,{"$nulls":10},1]
["/PlantFormat/FormatData/ProcData/CheckOffData/CheckOffHeaderList/CheckOffHeader","{node}",5,null,1,null,null,1,null,1,{"$nulls":16},1,{"$nulls":10},1]
["/PlantFormat/FormatData/ProcData/CheckOffData/CheckOffHeaderList/CheckOffHeader/@CheckOffHeading","   \\ul INIT\\ul0 ",1,{"$nulls":6},1]
["/PlantFormat/FormatData/ProcData/CheckOffData/CheckOffHeaderList/CheckOffHeader/@CheckOffHeading","\\ul INIT\\ul0   \\ul VERI\\ul0 ",1,{"$nulls":6},1]
["/PlantFormat/FormatData/ProcData/CheckOffData/CheckOffHeaderList/CheckOffHeader/@CheckOffHeading","{Backspace}{Backspace}{Backspace}{Backspace}{Backspace}(CIRCLE ONE)",1,null,1]
["/PlantFormat/FormatData/ProcData/CheckOffData/CheckOffHeaderList/CheckOffHeader/@CheckOffHeading","{NO HEADING}",5,null,1,null,null,1,null,1,{"$nulls":16},1,{"$nulls":10},1]
["/PlantFormat/FormatData/ProcData/CheckOffData/CheckOffHeaderList/CheckOffHeader/@CheckOffHeading","INIT/DATE",2,{"$nulls":4},1,{"$nulls":29},1]
["/PlantFormat/FormatData/ProcData/CheckOffData/CheckOffHeaderList/CheckOffHeader/@CheckOffHeading","INITIAL",1,null,1]
["/PlantFormat/FormatData/ProcData/CheckOffData/CheckOffList","{node}",12,1,3,null,2,1,null,1,2,{"$nulls":4},1,null,1,{"$nulls":8},9,{"$nulls":8},2,null,1,null,null,7]
["/PlantFormat/FormatData/ProcData/CheckOffData/CheckOffList/CheckOff","{node}",12,1,3,null,2,1,null,1,2,{"$nulls":4},1,null,1,{"$nulls":8},9,{"$nulls":8},2,null,1,null,null,7]
["/PlantFormat/FormatData/ProcData/CheckOffData/CheckOffList/CheckOff/@CheckOffWidAdjust",12,1,null,1]
["/PlantFormat/FormatData/ProcData/CheckOffData/CheckOffList/CheckOff/@CheckOffWidAdjust",18,1,null,1]
["/PlantFormat/FormatData/ProcData/CheckOffData/CheckOffList/CheckOff/@CheckOffWidAdjust",24,1,null,1]
["/PlantFormat/FormatData/ProcData/CheckOffData/CheckOffList/CheckOff/@CheckOffWidAdjust",36,1,null,1]
["/PlantFormat/FormatData/ProcData/CheckOffData/CheckOffList/CheckOff/@CheckOffWidAdjust",42,2,null,1,{"$nulls":21},1]
["/PlantFormat/FormatData/ProcData/CheckOffData/CheckOffList/CheckOff/@CheckOffWidAdjust",6,1,null,1]
["/PlantFormat/FormatData/ProcData/CheckOffData/CheckOffList/CheckOff/@CheckOffWidAdjust",78,1,null,1]
["/PlantFormat/FormatData/ProcData/CheckOffData/CheckOffList/CheckOff/@RightCheckOffChars",100,1,{"$nulls":3},1]
["/PlantFormat/FormatData/ProcData/CheckOffData/CheckOffList/CheckOff/@RightCheckOffChars",196,2,{"$nulls":4},1,{"$nulls":29},1]
["/PlantFormat/FormatData/ProcData/CheckOffData/CheckOffList/CheckOff/@RightCheckOffChars",254,6,1,{"$nulls":3},1,{"$nulls":9},1,{"$nulls":8},1,{"$nulls":8},2,null,1]
["/PlantFormat/FormatData/ProcData/CheckOffData/CheckOffList/CheckOff/@RightCheckOffChars",36,1,{"$nulls":23},6]
["/PlantFormat/FormatData/ProcData/CheckOffData/CheckOffList/CheckOff/@RightCheckOffChars",42,2,{"$nulls":7},2,{"$nulls":4},1]
["/PlantFormat/FormatData/ProcData/CheckOffData/CheckOffList/CheckOff/@RightCheckOffChars",47,1,null,1]
["/PlantFormat/FormatData/ProcData/CheckOffData/CheckOffList/CheckOff/@RightCheckOffChars",49,4,null,1,null,2,null,null,1,{"$nulls":30},1]
["/PlantFormat/FormatData/ProcData/CheckOffData/CheckOffList/CheckOff/@RightCheckOffChars",50,4,null,1,null,1,null,null,1,{"$nulls":30},1]
["/PlantFormat/FormatData/ProcData/CheckOffData/CheckOffList/CheckOff/@RightCheckOffChars",51,1,{"$nulls":3},2]
["/PlantFormat/FormatData/ProcData/CheckOffData/CheckOffList/CheckOff/@RightCheckOffChars",52,1,{"$nulls":37},1]
["/PlantFormat/FormatData/ProcData/CheckOffData/CheckOffList/CheckOff/@RightCheckOffChars",65,2,null,1,null,2]
["/PlantFormat/FormatData/ProcData/CheckOffData/CheckOffList/CheckOff/@RightCheckOffChars",66,1,{"$nulls":3},2]
["/PlantFormat/FormatData/ProcData/CheckOffData/CheckOffList/CheckOff/@RightCheckOffChars",67,4,null,1,null,2,{"$nulls":19},2,{"$nulls":13},1]
["/PlantFormat/FormatData/ProcData/CheckOffData/CheckOffList/CheckOff/@RightCheckOffChars",68,1,{"$nulls":3},2]
["/PlantFormat/FormatData/ProcData/CheckOffData/CheckOffList/CheckOff/@RightCheckOffChars",69,3,null,1,{"$nulls":21},8,{"$nulls":13},1]
["/PlantFormat/FormatData/ProcData/CheckOffData/CheckOffList/CheckOff/@RightCheckOffChars",71,1,{"$nulls":37},1]
["/PlantFormat/FormatData/ProcData/CheckOffData/CheckOffList/CheckOff/@RightCheckOffChars",72,1,{"$nulls":37},1]
["/PlantFormat/FormatData/ProcData/CheckOffData/CheckOffList/CheckOff/@RightCheckOffChars",73,4,null,1,null,1,{"$nulls":19},2,{"$nulls":13},1]
["/PlantFormat/FormatData/ProcData/CheckOffData/CheckOffList/CheckOff/@RightCheckOffChars",76,2,null,1,{"$nulls":21},6]
["/PlantFormat/FormatData/ProcData/CheckOffData/CheckOffList/CheckOff/@RightCheckOffChars",77,2,{"$nulls":23},8,{"$nulls":13},1]
["/PlantFormat/FormatData/ProcData/CheckOffData/CheckOffList/CheckOff/@RightCheckOffChars",78,5,null,1,null,2,null,null,1,{"$nulls":16},8,{"$nulls":13},1]
["/PlantFormat/FormatData/ProcData/CheckOffData/CheckOffList/CheckOff/@RightCheckOffChars",79,3,null,1,null,1,{"$nulls":19},2]
["/PlantFormat/FormatData/ProcData/CheckOffData/CheckOffList/CheckOff/@RightCheckOffChars",80,2,null,1,null,1]
["/PlantFormat/FormatData/ProcData/CheckOffData/CheckOffList/CheckOff/@RightCheckOffChars",81,1,{"$nulls":37},6]
["/PlantFormat/FormatData/ProcData/CheckOffData/CheckOffList/CheckOff/@RightCheckOffChars",82,2,null,1,{"$nulls":21},2]
["/PlantFormat/FormatData/ProcData/CheckOffData/CheckOffList/CheckOff/@RightCheckOffChars",83,4,null,1,null,2,{"$nulls":19},2,{"$nulls":13},1]
["/PlantFormat/FormatData/ProcData/CheckOffData/CheckOffList/CheckOff/@RightCheckOffChars",85,1,{"$nulls":3},2]
["/PlantFormat/FormatData/ProcData/CheckOffData/CheckOffList/CheckOff/@RightCheckOffChars",86,2,null,1,{"$nulls":35},1]
["/PlantFormat/FormatData/ProcData/CheckOffData/CheckOffList/CheckOff/@RightCheckOffChars",89,2,null,1,null,2]
["/PlantFormat/FormatData/ProcData/CheckOffData/CheckOffList/CheckOff/@RightCheckOffChars",90,1,{"$nulls":3},2]
["/PlantFormat/FormatData/ProcData/CheckOffData/CheckOffList/CheckOff/@RightCheckOffChars",95,2,null,2,{"$nulls":12},1]
["/PlantFormat/FormatData/ProcData/CheckOffData/CheckOffList/CheckOff/@RightCheckOffChars",97,1,{"$nulls":3},1]
["/PlantFormat/FormatData/ProcData/CheckOffData/CheckOffList/CheckOff/@RightCheckOffChars",99,{"$f":"COUNTA(D67:AO67)","v":1},null,1]
["/PlantFormat/FormatData/ProcData/CheckOffData/CheckOffList/CheckOff/@RightCheckOffPrompt","     [ ]    ",2,{"$nulls":4},1,{"$nulls":29},1]
["/PlantFormat/FormatData/ProcData/CheckOffData/CheckOffList/CheckOff/@RightCheckOffPrompt"," _____/_____",2,{"$nulls":4},1,{"$nulls":29},1]
["/PlantFormat/FormatData/ProcData/CheckOffData/CheckOffList/CheckOff/@RightCheckOffPrompt","$",1,{"$nulls":23},6]
["/PlantFormat/FormatData/ProcData/CheckOffData/CheckOffList/CheckOff/@RightCheckOffPrompt","[/] ____/____",1,null,1]
["/PlantFormat/FormatData/ProcData/CheckOffData/CheckOffList/CheckOff/@RightCheckOffPrompt","[] ",1,{"$nulls":14},1]
["/PlantFormat/FormatData/ProcData/CheckOffData/CheckOffList/CheckOff/@RightCheckOffPrompt","[] (AER Column)",2,1,{"$nulls":31},2]
["/PlantFormat/FormatData/ProcData/CheckOffData/CheckOffList/CheckOff/@RightCheckOffPrompt","[] (both) []",2,1,{"$nulls":31},2]
["/PlantFormat/FormatData/ProcData/CheckOffData/CheckOffList/CheckOff/@RightCheckOffPrompt","[] (RNO Column)",2,1,{"$nulls":31},2]
["/PlantFormat/FormatData/ProcData/CheckOffData/CheckOffList/CheckOff/@RightCheckOffPrompt","[1] _____",1,{"$nulls":37},1]
["/PlantFormat/FormatData/ProcData/CheckOffData/CheckOffList/CheckOff/@RightCheckOffPrompt","[1] _________",2,null,1,null,2]
["/PlantFormat/FormatData/ProcData/CheckOffData/CheckOffList/CheckOff/@RightCheckOffPrompt","[2] __ __",1,{"$nulls":3},1]
["/PlantFormat/FormatData/ProcData/CheckOffData/CheckOffList/CheckOff/@RightCheckOffPrompt","[2] ____ ____",1,null,1]
["/PlantFormat/FormatData/ProcData/CheckOffData/CheckOffList/CheckOff/@RightCheckOffPrompt","[2] _____ _____",1,{"$nulls":37},1]
["/PlantFormat/FormatData/ProcData/CheckOffData/CheckOffList/CheckOff/@RightCheckOffPrompt","[3] __ __ __",1,{"$nulls":3},2]
["/PlantFormat/FormatData/ProcData/CheckOffData/CheckOffList/CheckOff/@RightCheckOffPrompt","[4] _____ _____",1,{"$nulls":37},1]
["/PlantFormat/FormatData/ProcData/CheckOffData/CheckOffList/CheckOff/@RightCheckOffPrompt","[A] A/B",1,null,1]
["/PlantFormat/FormatData/ProcData/CheckOffData/CheckOffList/CheckOff/@RightCheckOffPrompt","[A] A_B_C_D",1,{"$nulls":3},2]
["/PlantFormat/FormatData/ProcData/CheckOffData/CheckOffList/CheckOff/@RightCheckOffPrompt","[a] A_C",1,{"$nulls":3},1]
["/PlantFormat/FormatData/ProcData/CheckOffData/CheckOffList/CheckOff/@RightCheckOffPrompt","[B] AB_AC_AD",1,{"$nulls":3},2]
["/PlantFormat/FormatData/ProcData/CheckOffData/CheckOffList/CheckOff/@RightCheckOffPrompt","[C] BC_BD_CD",1,{"$nulls":3},2]
["/PlantFormat/FormatData/ProcData/CheckOffData/CheckOffList/CheckOff/@RightCheckOffPrompt","[C] Circle One",1,null,1]
["/PlantFormat/FormatData/ProcData/CheckOffData/CheckOffList/CheckOff/@RightCheckOffPrompt","[C] CRS  ",1,{"$nulls":37},1]
["/PlantFormat/FormatData/ProcData/CheckOffData/CheckOffList/CheckOff/@RightCheckOffPrompt","[c] YES NO N/A Circle One",1,null,1]
["/PlantFormat/FormatData/ProcData/CheckOffData/CheckOffList/CheckOff/@RightCheckOffPrompt","[D] B_D",1,{"$nulls":3},2]
["/PlantFormat/FormatData/ProcData/CheckOffData/CheckOffList/CheckOff/@RightCheckOffPrompt","[d] Init/Date",1,{"$nulls":3},1]
["/PlantFormat/FormatData/ProcData/CheckOffData/CheckOffList/CheckOff/@RightCheckOffPrompt","[E] ELEC ",1,{"$nulls":37},1]
["/PlantFormat/FormatData/ProcData/CheckOffData/CheckOffList/CheckOff/@RightCheckOffPrompt","[E] Open/Closed",1,null,1]
["/PlantFormat/FormatData/ProcData/CheckOffData/CheckOffList/CheckOff/@RightCheckOffPrompt","[G] ENG ",1,{"$nulls":37},1]
["/PlantFormat/FormatData/ProcData/CheckOffData/CheckOffList/CheckOff/@RightCheckOffPrompt","[H] CHEM ",1,{"$nulls":37},1]
["/PlantFormat/FormatData/ProcData/CheckOffData/CheckOffList/CheckOff/@RightCheckOffPrompt","[I] _SRO_INIT_",1,{"$nulls":3},1]
["/PlantFormat/FormatData/ProcData/CheckOffData/CheckOffList/CheckOff/@RightCheckOffPrompt","[I] I&C ",1,{"$nulls":37},1]
["/PlantFormat/FormatData/ProcData/CheckOffData/CheckOffList/CheckOff/@RightCheckOffPrompt","[I] Insp/Ind Insp",1,null,1]
["/PlantFormat/FormatData/ProcData/CheckOffData/CheckOffList/CheckOff/@RightCheckOffPrompt","[L] Insp/N/A",1,null,1]
["/PlantFormat/FormatData/ProcData/CheckOffData/CheckOffList/CheckOff/@RightCheckOffPrompt","[M] MECH ",1,{"$nulls":37},1]
["/PlantFormat/FormatData/ProcData/CheckOffData/CheckOffList/CheckOff/@RightCheckOffPrompt","[N] _____ _N/A_",1,{"$nulls":37},1]
["/PlantFormat/FormatData/ProcData/CheckOffData/CheckOffList/CheckOff/@RightCheckOffPrompt","[N] YES NO N/A",1,null,1]
["/PlantFormat/FormatData/ProcData/CheckOffData/CheckOffList/CheckOff/@RightCheckOffPrompt","[N] YES/NO/NA",1,{"$nulls":3},2]
["/PlantFormat/FormatData/ProcData/CheckOffData/CheckOffList/CheckOff/@RightCheckOffPrompt","[O] CLOSE/AUTO",1,{"$nulls":3},1]
["/PlantFormat/FormatData/ProcData/CheckOffData/CheckOffList/CheckOff/@RightCheckOffPrompt","[O] S/S or CRS",1,null,1]
["/PlantFormat/FormatData/ProcData/CheckOffData/CheckOffList/CheckOff/@RightCheckOffPrompt","[P] ___PTU___",1,{"$nulls":3},1]
["/PlantFormat/FormatData/ProcData/CheckOffData/CheckOffList/CheckOff/@RightCheckOffPrompt","[P] CAPS A CAPS B",1,null,1]
["/PlantFormat/FormatData/ProcData/CheckOffData/CheckOffList/CheckOff/@RightCheckOffPrompt","[Q] QC   ",1,{"$nulls":37},6]
["/PlantFormat/FormatData/ProcData/CheckOffData/CheckOffList/CheckOff/@RightCheckOffPrompt","[R] N/A/Ind Insp",1,null,1]
["/PlantFormat/FormatData/ProcData/CheckOffData/CheckOffList/CheckOff/@RightCheckOffPrompt","[S] ___SRO___",1,{"$nulls":3},2]
["/PlantFormat/FormatData/ProcData/CheckOffData/CheckOffList/CheckOff/@RightCheckOffPrompt","[S] SM   ",1,{"$nulls":37},1]
["/PlantFormat/FormatData/ProcData/CheckOffData/CheckOffList/CheckOff/@RightCheckOffPrompt","[S] SRO SRO",1,null,1]
["/PlantFormat/FormatData/ProcData/CheckOffData/CheckOffList/CheckOff/@RightCheckOffPrompt","[U] SAT/UNSAT",1,{"$nulls":3},2]
["/PlantFormat/FormatData/ProcData/CheckOffData/CheckOffList/CheckOff/@RightCheckOffPrompt","[V] _____ _____",1,{"$nulls":37},1]
["/PlantFormat/FormatData/ProcData/CheckOffData/CheckOffList/CheckOff/@RightCheckOffPrompt","[V] Verif/Ind",1,null,1]
["/PlantFormat/FormatData/ProcData/CheckOffData/CheckOffList/CheckOff/@RightCheckOffPrompt","[Y] YES NO",1,null,1]
["/PlantFormat/FormatData/ProcData/CheckOffData/CheckOffList/CheckOff/@RightCheckOffPrompt","[Y] YES/NO",1,{"$nulls":3},2]
["/PlantFormat/FormatData/ProcData/CheckOffData/CheckOffList/CheckOff/@RightCheckOffPrompt","[Z] ZD_ZE_ZF_ZG",1,{"$nulls":3},2]
["/PlantFormat/FormatData/ProcData/CheckOffData/CheckOffList/CheckOff/@RightCheckOffPrompt","____",2,null,2,{"$nulls":12},1]
["/PlantFormat/FormatData/ProcData/CheckOffData/CheckOffList/CheckOff/@RightCheckOffPrompt","_____",1,{"$nulls":6},1]
["/PlantFormat/FormatData/ProcData/CheckOffData/CheckOffList/CheckOff/@RightCheckOffPrompt","_____ _____",1,{"$nulls":6},1]
["/PlantFormat/FormatData/ProcData/CheckOffData/CheckOffList/CheckOff/@RightCheckOffPrompt","_____ _N/A_",1,{"$nulls":6},1]
["/PlantFormat/FormatData/ProcData/CheckOffData/CheckOffList/CheckOff/@RightCheckOffPrompt","_____[C]hemist",1,{"$nulls":23},2]
["/PlantFormat/FormatData/ProcData/CheckOffData/CheckOffList/CheckOff/@RightCheckOffPrompt","_____[E]lectrician",1,{"$nulls":23},2]
["/PlantFormat/FormatData/ProcData/CheckOffData/CheckOffList/CheckOff/@RightCheckOffPrompt","_____[I]nitials",1,{"$nulls":23},2]
["/PlantFormat/FormatData/ProcData/CheckOffData/CheckOffList/CheckOff/@RightCheckOffPrompt","_____[M]aintenance",1,{"$nulls":23},2]
["/PlantFormat/FormatData/ProcData/CheckOffData/CheckOffList/CheckOff/@RightCheckOffPrompt","_____[O]perator",1,{"$nulls":23},2]
["/PlantFormat/FormatData/ProcData/CheckOffData/CheckOffList/CheckOff/@RightCheckOffPrompt","_____[R]esponsible Individual",1,{"$nulls":23},2]
["/PlantFormat/FormatData/ProcData/CheckOffData/CheckOffList/CheckOff/@RightCheckOffPrompt","_____[S]hift Supervisor",1,{"$nulls":23},2]
["/PlantFormat/FormatData/ProcData/CheckOffData/CheckOffList/CheckOff/@RightCheckOffPrompt","___________",{"$f":"COUNTA(D131:AO131)","v":1},{"$nulls":23},1]
["/PlantFormat/FormatData/ProcData/CheckOffData/CheckOffList/CheckOff/@RightCheckOffPrompt","_____E[N]gineer",1,{"$nulls":23},2]
["/PlantFormat/FormatData/ProcData/CheckOffData/CheckOffList/CheckOff/@RightCheckOffPrompt","{no checkoff}",10,1,3,null,2,1,null,1,{"$nulls":7},1,{"$nulls":8},9,{"$nulls":8},2,null,1,null,null,1]
["/PlantFormat/FormatData/ProcData/CheckOffData/CheckOffList/CheckOff/@RightCheckOffPrompt","{section default}",10,1,3,null,2,1,null,1,{"$nulls":7},1,{"$nulls":8},9,{"$nulls":8},2,null,1,null,null,1]
["/PlantFormat/FormatData/ProcData/CheckOffData/CheckOffList/CheckOff/@RightCheckOffPrompt","Add Commitment",2,{"$nulls":7},2,{"$nulls":4},1]
["/PlantFormat/FormatData/ProcData/CheckOffData/CheckOffList/CheckOff/@RightCheckOffPrompt","E",1,{"$nulls":23},6]
["/PlantFormat/FormatData/ProcData/CheckOffData/CheckOffList/CheckOff/@RightCheckOffPrompt","L",1,{"$nulls":23},6]
["/PlantFormat/FormatData/ProcData/CheckOffData/CheckOffList/CheckOff/@RightCheckOffPrompt","M",1,{"$nulls":23},6]
["/PlantFormat/FormatData/ProcData/CheckOffData/CheckOffList/CheckOff/@RightCheckOffPrompt","N",1,{"$nulls":23},6]
["/PlantFormat/FormatData/ProcData/CheckOffData/CheckOffList/CheckOff/@RightCheckOffPrompt","No commitment",2,{"$nulls":7},2,{"$nulls":4},1]
["/PlantFormat/FormatData/ProcData/CheckOffData/CheckOffList/CheckOff/@RightCheckOffPrompt","Remove commitment",2,{"$nulls":7},2,{"$nulls":4},1]
["/PlantFormat/FormatData/ProcData/CheckOffData/RightCheckOffBoxList","{node}",17,1,3,null,2,1,2,1,2,{"$nulls":4},1,null,1,null,null,2,{"$nulls":4},2,9,null,null,1,null,1,{"$nulls":3},2,null,1,null,null,1]
["/PlantFormat/FormatData/ProcData/CheckOffData/RightCheckOffBoxList/RightCheckOffBox","{node}",17,1,3,null,2,1,2,1,2,{"$nulls":4},1,null,1,null,null,2,{"$nulls":4},2,9,null,null,1,null,1,{"$nulls":3},2,null,1,null,null,1]
["/PlantFormat/FormatData/ProcData/CheckOffData/RightCheckOffBoxList/RightCheckOffBox/@RightCheckOffBoxChar",-2,5,{"$nulls":5},2,{"$nulls":11},2,{"$nulls":4},2,{"$nulls":3},1,null,1]
["/PlantFormat/FormatData/ProcData/CheckOffData/RightCheckOffBoxList/RightCheckOffBox/@RightCheckOffBoxChar",2,2,{"$nulls":7},2,{"$nulls":4},1]
["/PlantFormat/FormatData/ProcData/CheckOffData/RightCheckOffBoxList/RightCheckOffBox/@RightCheckOffBoxChar",256,2,null,2,{"$nulls":12},1]
["/PlantFormat/FormatData/ProcData/CheckOffData/RightCheckOffBoxList/RightCheckOffBox/@RightCheckOffBoxChar",257,3,1,{"$nulls":22},6,{"$nulls":8},2]
["/PlantFormat/FormatData/ProcData/CheckOffData/RightCheckOffBoxList/RightCheckOffBox/@RightCheckOffBoxChar",324,1,{"$nulls":6},1]
["/PlantFormat/FormatData/ProcData/CheckOffData/RightCheckOffBoxList/RightCheckOffBox/@RightCheckOffBoxChar",327,1,{"$nulls":3},1]
["/PlantFormat/FormatData/ProcData/CheckOffData/RightCheckOffBoxList/RightCheckOffBox/@RightCheckOffBoxChar",328,3,{"$nulls":4},1,{"$nulls":18},3,{"$nulls":10},1]
["/PlantFormat/FormatData/ProcData/CheckOffData/RightCheckOffBoxList/RightCheckOffBox/@RightCheckOffBoxChar",329,1,{"$nulls":3},1]
["/PlantFormat/FormatData/ProcData/CheckOffData/RightCheckOffBoxList/RightCheckOffBox/@RightCheckOffBoxChar",331,1,{"$nulls":37},1]
["/PlantFormat/FormatData/ProcData/CheckOffData/RightCheckOffBoxList/RightCheckOffBox/@RightCheckOffBoxChar",333,1,null,1]
["/PlantFormat/FormatData/StepData/Step/@CheckOffOnAllSteps",false,38,4,14,1,7,5,5,11,7,1,1,1,1,3,3,6,2,3,3,2,7,17,1,4,18,1,7,4,1,6,1,1,4,1,1,7,7,4,21]
["/PlantFormat/FormatData/StepData/Step/@CheckOffOnAllSteps",true,2,4,{"$nulls":31},2]
["/PlantFormat/FormatData/StepData/Step/@CheckOffs",false,3,{"$nulls":18},1,null,1,{"$nulls":3},1]
["/PlantFormat/FormatData/StepData/Step/@CheckOffs",true,1,null,null,1]
["/PlantFormat/FormatData/StepData/Step/@CheckOffSameAsParent",false,1,null,null,1]
["/PlantFormat/FormatData/StepData/Step/@OffsetTab",false,3,null,3,{"$nulls":12},1,null,null,2]
["/PlantFormat/FormatData/StepData/Step/@OffsetTab",true,1,null,null,1]
["/PlantFormat/FormatData/StepData/Step/StepLayoutData/@RtCheckOffGroups",4,2,{"$nulls":18},1,{"$nulls":5},1]
["/PlantFormat/FormatData/StepData/Step/TabData/@CheckOff","Left",1,null,2]
["/PlantFormat/FormatData/StepData/Step/TabData/@CheckOff","None",38,8,14,1,7,5,5,11,7,1,1,1,1,3,3,6,2,3,3,2,7,17,1,4,18,1,7,4,1,6,1,1,4,3,1,7,7,4,21]
["/PlantFormat/FormatData/StepData/Step/TabData/@CheckOff","Right",5,4,{"$nulls":3},2,null,1,{"$nulls":11},1,{"$nulls":5},1]
["/PlantFormat/PageStyles/PageStyle/Item/@Token","{CHKOFFHEADING}",5,null,1,null,null,1,null,1,{"$nulls":19},1,{"$nulls":7},1]
["/PlantFormat/PageStyles/PageStyle/Item/@Token","{PS=NSR? [UCHKOFF7]|[BOX3]}",1,{"$nulls":37},1]
["/PlantFormat/PageStyles/PageStyle/Item/@Token","{PS=PORCR? [UCHKOFF8]|[BOX4]}",1,{"$nulls":37},1]
["/PlantFormat/PageStyles/PageStyle/Item/@Token","{PS=PORCREV?[UCHKOFF8]|[BOX4]}",1,{"$nulls":37},1]
["/PlantFormat/PageStyles/PageStyle/Item/@Token","{PS=SRELATED?[UCHKOFF7]|[BOX3]}",1,{"$nulls":37},1]
["/PlantFormat/PageStyles/PageStyle/Item/@Token","{PS=SROAPP? [UCHKOFF9]|[BOX5]}",1,{"$nulls":37},1]
["/PlantFormat/PageStyles/PageStyle/Item/@Token","{PS=SROAPP?[UCHKOFF9]|[BOX5]}",1,{"$nulls":37},1]

{"sheet":"Sheet2","index":1,"n_rows":0,"n_cols":0,"rows_kept":0}

{"sheet":"Sheet3","index":2,"n_rows":0,"n_cols":0,"rows_kept":0}